[Event "Titled Tuesday Blitz April 11 Early 2023"]
[White "Dzagnidze, Nana"]
[Black "Nguyen, Hong Anh"]
[WhiteFideId "13601903"]
[BlackFideId "12406732"]
[WhiteElo "2406"]
[BlackElo "2054"]
[Result "0-1"]
[Round "07"]
[TimeControl "180+2"]
[Date "2023.04.11"]
[WhiteClock "0:00:01"]
[BlackClock "0:00:43"]

1. c4 {[%clk 0:03:00]}  Nf6 {[%clk 0:02:58]} 2. Nc3 {[%clk 0:02:59]}  d5 {[%clk 0:02:57]} 3. cxd5 {[%clk 0:02:58]}  Nxd5 {[%clk 0:02:57]} 4. e4 {[%clk 0:02:58]}  Nb6 {[%clk 0:02:57]} 5. d4 {[%clk 0:02:56]}  g6 {[%clk 0:02:56]} 6. h3 {[%clk 0:02:55]}  Bg7 {[%clk 0:02:55]} 7. Nf3 {[%clk 0:02:55]}  O-O {[%clk 0:02:53]} 8. Bf4 {[%clk 0:02:51]}  Nc6 {[%clk 0:02:46]} 9. d5 {[%clk 0:02:51]}  Na5 {[%clk 0:02:45]} 10. Qc2 {[%clk 0:02:43]}  c6 {[%clk 0:02:42]} 11. dxc6 {[%clk 0:02:36]}  Nxc6 {[%clk 0:02:42]} 12. Rd1 {[%clk 0:02:36]}  Bd7 {[%clk 0:02:38]} 13. Be2 {[%clk 0:02:22]}  Qc8 {[%clk 0:02:29]} 14. O-O {[%clk 0:02:20]}  Nb4 {[%clk 0:02:25]} 15. Qb3 {[%clk 0:02:15]}  a5 {[%clk 0:02:25]} 16. a3 {[%clk 0:01:55]}  Be6 {[%clk 0:02:22]} 17. Nd5 {[%clk 0:01:55]}  N4xd5 {[%clk 0:01:58]} 18. exd5 {[%clk 0:01:55]}  Nxd5 {[%clk 0:01:58]} 19. Rxd5 {[%clk 0:01:55]}  a4 {[%clk 0:01:51]} 20. Qb5 {[%clk 0:01:49]}  Bxd5 {[%clk 0:01:48]} 21. Qxd5 {[%clk 0:01:50]}  Qc2 {[%clk 0:01:46]} 22. Bb5 {[%clk 0:01:07]}  Qxb2 {[%clk 0:01:38]} 23. Bc1 {[%clk 0:01:05]}  Qb3 {[%clk 0:01:33]} 24. Bc4 {[%clk 0:01:04]}  Qc2 {[%clk 0:01:29]} 25. Qb5 {[%clk 0:00:57]}  Rac8 {[%clk 0:01:20]} 26. Bd5 {[%clk 0:00:48]}  Rc5 {[%clk 0:01:18]} 27. Qxb7 {[%clk 0:00:48]}  e6 {[%clk 0:01:16]} 28. Be4 {[%clk 0:00:40]}  Qb3 {[%clk 0:01:15]} 29. Be3 {[%clk 0:00:17]}  Rc4 {[%clk 0:01:08]} 30. Nd2 {[%clk 0:00:17]}  Qxb7 {[%clk 0:01:03]} 31. Bxb7 {[%clk 0:00:18]}  Rc3 {[%clk 0:01:04]} 32. Nb1 {[%clk 0:00:15]}  Rb3 {[%clk 0:00:57]} 33. Bc6 {[%clk 0:00:14]}  Rfb8 {[%clk 0:00:56]} 34. Nd2 {[%clk 0:00:14]}  Rxa3 {[%clk 0:00:57]} 35. Rd1 {[%clk 0:00:07]}  Rd8 {[%clk 0:00:51]} 36. Rb1 {[%clk 0:00:05]}  Ra2 {[%clk 0:00:49]} 37. Nc4 {[%clk 0:00:04]}  Rc2 {[%clk 0:00:47]} 38. Na5 {[%clk 0:00:02]}  a3 {[%clk 0:00:46]} 39. Ba4 {[%clk 0:00:02]}  Rb2 {[%clk 0:00:43]} 40. Rc1 {[%clk 0:00:01]}  a2 {[%clk 0:00:43]} 0-1


[Site "https://www.chess.com"]

[Event "Titled Tuesday Blitz April 11 Early 2023"]
[White "Shapiro, Viktor"]
[Black "Kvaloy, Aksel Bu"]
[WhiteFideId "4175700"]
[BlackFideId "1528815"]
[WhiteElo "2152"]
[BlackElo "2208"]
[Result "0-1"]
[Round "07"]
[TimeControl "180+2"]
[Date "2023.04.11"]
[WhiteClock "0:00:04"]
[BlackClock "0:01:23"]

1. c4 {[%clk 0:01:33]}  e5 {[%clk 0:03:00]} 2. Nc3 {[%clk 0:01:34]}  Nf6 {[%clk 0:02:59]} 3. g3 {[%clk 0:01:34]}  Bb4 {[%clk 0:02:59]} 4. Bg2 {[%clk 0:01:34]}  O-O {[%clk 0:02:59]} 5. Nf3 {[%clk 0:01:34]}  Re8 {[%clk 0:02:59]} 6. O-O {[%clk 0:01:34]}  e4 {[%clk 0:03:00]} 7. Nd4 {[%clk 0:01:34]}  Nc6 {[%clk 0:03:00]} 8. Nc2 {[%clk 0:01:34]}  Bxc3 {[%clk 0:03:01]} 9. bxc3 {[%clk 0:01:34]}  d6 {[%clk 0:02:54]} 10. d3 {[%clk 0:01:34]}  exd3 {[%clk 0:02:50]} 11. exd3 {[%clk 0:01:34]}  Bg4 {[%clk 0:02:50]} 12. f3 {[%clk 0:01:32]}  Bf5 {[%clk 0:02:48]} 13. g4 {[%clk 0:01:31]}  Bg6 {[%clk 0:02:48]} 14. f4 {[%clk 0:01:28]}  h6 {[%clk 0:02:44]} 15. f5 {[%clk 0:01:28]}  Bh7 {[%clk 0:02:44]} 16. Rb1 {[%clk 0:01:24]}  Ne5 {[%clk 0:02:42]} 17. h3 {[%clk 0:01:24]}  c6 {[%clk 0:02:39]} 18. Rxb7 {[%clk 0:01:22]}  d5 {[%clk 0:02:32]} 19. cxd5 {[%clk 0:00:53]}  Nxd5 {[%clk 0:02:33]} 20. Qd2 {[%clk 0:00:34]}  Nb6 {[%clk 0:02:22]} 21. d4 {[%clk 0:00:30]}  Nec4 {[%clk 0:02:12]} 22. Qf4 {[%clk 0:00:23]}  Nd5 {[%clk 0:02:01]} 23. Qf3 {[%clk 0:00:17]}  Qa5 {[%clk 0:02:00]} 24. Nb4 {[%clk 0:00:11]}  Nxb4 {[%clk 0:01:40]} 25. cxb4 {[%clk 0:00:12]}  Qxa2 {[%clk 0:01:40]} 26. f6 {[%clk 0:00:10]}  Be4 {[%clk 0:01:38]} 27. Qf2 {[%clk 0:00:10]}  Qxf2+ {[%clk 0:01:29]} 28. Rxf2 {[%clk 0:00:11]}  Bd5 {[%clk 0:01:28]} 29. Bxd5 {[%clk 0:00:09]}  cxd5 {[%clk 0:01:29]} 30. fxg7 {[%clk 0:00:08]}  Re1+ {[%clk 0:01:27]} 31. Rf1 {[%clk 0:00:09]}  Rxf1+ {[%clk 0:01:28]} 32. Kxf1 {[%clk 0:00:09]}  Kxg7 {[%clk 0:01:29]} 33. Rd7 {[%clk 0:00:09]}  a5 {[%clk 0:01:27]} 34. Rxd5 {[%clk 0:00:04]}  axb4 {[%clk 0:01:23]} 0-1


[Site "https://www.chess.com"]

[Event "Titled Tuesday Blitz April 11 Early 2023"]
[White "Lopez, Henry"]
[Black "Chernobay, Artem"]
[WhiteFideId "5203830"]
[BlackFideId "4167406"]
[WhiteElo "2177"]
[BlackElo "2474"]
[Result "0-1"]
[Round "07"]
[TimeControl "180+2"]
[Date "2023.04.11"]
[WhiteClock "0:00:01"]
[BlackClock "0:00:18"]

1. d4 {[%clk 0:03:00]}  Nf6 {[%clk 0:02:58]} 2. Nf3 {[%clk 0:03:00]}  g6 {[%clk 0:02:49]} 3. c4 {[%clk 0:02:59]}  Bg7 {[%clk 0:02:49]} 4. Nc3 {[%clk 0:02:59]}  O-O {[%clk 0:02:49]} 5. e4 {[%clk 0:02:58]}  d6 {[%clk 0:02:49]} 6. Be2 {[%clk 0:02:58]}  e5 {[%clk 0:02:48]} 7. O-O {[%clk 0:02:57]}  Nc6 {[%clk 0:02:48]} 8. d5 {[%clk 0:02:57]}  Ne7 {[%clk 0:02:48]} 9. b4 {[%clk 0:02:57]}  a5 {[%clk 0:02:47]} 10. Ba3 {[%clk 0:02:56]}  Nd7 {[%clk 0:02:40]} 11. bxa5 {[%clk 0:02:54]}  Rxa5 {[%clk 0:02:40]} 12. Bb4 {[%clk 0:02:53]}  Ra8 {[%clk 0:02:37]} 13. a4 {[%clk 0:02:53]}  h6 {[%clk 0:02:19]} 14. Nd2 {[%clk 0:02:44]}  f5 {[%clk 0:02:19]} 15. Nb3 {[%clk 0:02:32]}  Nf6 {[%clk 0:02:15]} 16. f3 {[%clk 0:02:31]}  h5 {[%clk 0:01:58]} 17. c5 {[%clk 0:02:30]}  Bh6 {[%clk 0:01:53]} 18. Qd3 {[%clk 0:02:28]}  h4 {[%clk 0:01:43]} 19. Nb5 {[%clk 0:02:22]}  Nh5 {[%clk 0:01:36]} 20. cxd6 {[%clk 0:02:16]}  cxd6 {[%clk 0:01:34]} 21. Bxd6 {[%clk 0:01:52]}  Nf4 {[%clk 0:01:31]} 22. Qc2 {[%clk 0:01:46]}  Rf7 {[%clk 0:00:35]} 23. Bc7 {[%clk 0:01:37]}  Qf8 {[%clk 0:00:35]} 24. Bxe5 {[%clk 0:01:12]}  h3 {[%clk 0:00:33]} 25. g3 {[%clk 0:01:05]}  Ng2 {[%clk 0:00:33]} 26. Bd4 {[%clk 0:00:55]}  Ne3 {[%clk 0:00:30]} 27. Qd3 {[%clk 0:00:39]}  Nxf1 {[%clk 0:00:30]} 28. Rxf1 {[%clk 0:00:38]}  Rxa4 {[%clk 0:00:29]} 29. Nc5 {[%clk 0:00:29]}  fxe4 {[%clk 0:00:27]} 30. fxe4 {[%clk 0:00:24]}  Rxf1+ {[%clk 0:00:26]} 31. Bxf1 {[%clk 0:00:23]}  Rb4 {[%clk 0:00:24]} 32. d6 {[%clk 0:00:16]}  Nc6 {[%clk 0:00:21]} 33. Bf2 {[%clk 0:00:10]}  Rb2 {[%clk 0:00:19]} 34. Be2 {[%clk 0:00:07]}  Rd2 {[%clk 0:00:18]} 35. Qc4+ {[%clk 0:00:05]}  Kh7 {[%clk 0:00:18]} 36. d7 {[%clk 0:00:01]}  Bxd7 {[%clk 0:00:18]} 37. Nxd7 {[%clk 0:00:01]}  Rxd7 {[%clk 0:00:18]} 0-1


[Site "https://www.chess.com"]

[Event "Titled Tuesday Blitz April 11 Early 2023"]
[White "Shubenkova, Veronika"]
[Black "Bodnaruk, Anastasia"]
[WhiteFideId "44124040"]
[BlackFideId "4181751"]
[WhiteElo "2027"]
[BlackElo "2310"]
[Result "1-0"]
[Round "07"]
[TimeControl "180+2"]
[Date "2023.04.11"]
[WhiteClock "0:00:12"]
[BlackClock "0:00:04"]

1. e4 {[%clk 0:03:00]}  c5 {[%clk 0:02:59]} 2. Nc3 {[%clk 0:03:00]}  d6 {[%clk 0:02:58]} 3. g3 {[%clk 0:03:01]}  Nc6 {[%clk 0:02:58]} 4. Bg2 {[%clk 0:03:01]}  g6 {[%clk 0:02:59]} 5. d3 {[%clk 0:03:01]}  Bg7 {[%clk 0:02:59]} 6. f4 {[%clk 0:03:02]}  e6 {[%clk 0:02:57]} 7. Nf3 {[%clk 0:03:02]}  Nge7 {[%clk 0:02:57]} 8. O-O {[%clk 0:03:02]}  O-O {[%clk 0:02:57]} 9. Be3 {[%clk 0:03:02]}  Nd4 {[%clk 0:02:56]} 10. Rb1 {[%clk 0:03:02]}  Nec6 {[%clk 0:02:55]} 11. Ne2 {[%clk 0:03:01]}  Bd7 {[%clk 0:02:42]} 12. c3 {[%clk 0:03:01]}  Nxe2+ {[%clk 0:02:41]} 13. Qxe2 {[%clk 0:03:01]}  b6 {[%clk 0:02:34]} 14. g4 {[%clk 0:03:00]}  f5 {[%clk 0:02:30]} 15. gxf5 {[%clk 0:02:58]}  exf5 {[%clk 0:02:30]} 16. exf5 {[%clk 0:02:52]}  Bxf5 {[%clk 0:02:29]} 17. Ng5 {[%clk 0:02:52]}  d5 {[%clk 0:02:23]} 18. c4 {[%clk 0:02:52]}  Ne7 {[%clk 0:02:11]} 19. Rbd1 {[%clk 0:02:47]}  h6 {[%clk 0:02:03]} 20. Nf3 {[%clk 0:02:46]}  Re8 {[%clk 0:01:52]} 21. Qf2 {[%clk 0:02:36]}  Qd6 {[%clk 0:01:47]} 22. Nh4 {[%clk 0:02:34]}  d4 {[%clk 0:01:42]} 23. Bc1 {[%clk 0:02:29]}  Rad8 {[%clk 0:01:42]} 24. Qg3 {[%clk 0:02:24]}  Qf6 {[%clk 0:01:41]} 25. Kh1 {[%clk 0:02:05]}  Kh7 {[%clk 0:01:38]} 26. Rg1 {[%clk 0:02:04]}  Rf8 {[%clk 0:01:32]} 27. Be4 {[%clk 0:02:02]}  Rd6 {[%clk 0:01:26]} 28. Rde1 {[%clk 0:01:56]}  Qf7 {[%clk 0:01:09]} 29. Bd2 {[%clk 0:01:30]}  Bf6 {[%clk 0:01:03]} 30. Nxf5 {[%clk 0:01:26]}  Nxf5 {[%clk 0:00:48]} 31. Qh3 {[%clk 0:01:23]}  Bg7 {[%clk 0:00:35]} 32. Rg5 {[%clk 0:00:59]}  Kg8 {[%clk 0:00:29]} 33. Rg2 {[%clk 0:00:52]}  Ne3 {[%clk 0:00:26]} 34. Bxe3 {[%clk 0:00:50]}  dxe3 {[%clk 0:00:26]} 35. Qxe3 {[%clk 0:00:48]}  Qxf4 {[%clk 0:00:24]} 36. Qxf4 {[%clk 0:00:48]}  Rxf4 {[%clk 0:00:24]} 37. Bxg6 {[%clk 0:00:46]}  Bxb2 {[%clk 0:00:16]} 38. Re8+ {[%clk 0:00:26]}  Rf8 {[%clk 0:00:16]} 39. Be4+ {[%clk 0:00:13]}  Bg7 {[%clk 0:00:14]} 40. Rxf8+ {[%clk 0:00:08]}  Kxf8 {[%clk 0:00:13]} 41. Bd5 {[%clk 0:00:08]}  Rf6 {[%clk 0:00:11]} 42. Re2 {[%clk 0:00:09]}  Rf4 {[%clk 0:00:09]} 43. Kg2 {[%clk 0:00:09]}  Bd4 {[%clk 0:00:09]} 44. Kg3 {[%clk 0:00:09]}  Rf6 {[%clk 0:00:09]} 45. a4 {[%clk 0:00:06]}  Rg6+ {[%clk 0:00:05]} 46. Kf4 {[%clk 0:00:06]}  Rf6+ {[%clk 0:00:05]} 47. Kg4 {[%clk 0:00:06]}  Rf1 {[%clk 0:00:05]} 48. Be4 {[%clk 0:00:04]}  Rg1+ {[%clk 0:00:04]} 49. Kh3 {[%clk 0:00:04]}  Ra1 {[%clk 0:00:04]} 50. Bc6 {[%clk 0:00:04]}  Rf1 {[%clk 0:00:03]} 51. Re8+ {[%clk 0:00:04]}  Kf7 {[%clk 0:00:03]} 52. Ra8 {[%clk 0:00:04]}  a5 {[%clk 0:00:03]} 53. Ra7+ {[%clk 0:00:04]}  Kf6 {[%clk 0:00:03]} 54. Rb7 {[%clk 0:00:04]}  Rb1 {[%clk 0:00:02]} 55. Bd5 {[%clk 0:00:04]}  Rb3 {[%clk 0:00:02]} 56. Be4 {[%clk 0:00:04]}  Ke5 {[%clk 0:00:02]} 57. Re7+ {[%clk 0:00:04]}  Kf4 {[%clk 0:00:02]} 58. Rf7+ {[%clk 0:00:04]}  Ke3 {[%clk 0:00:02]} 59. Rf3+ {[%clk 0:00:04]}  Kd2 {[%clk 0:00:02]} 60. Kh4 {[%clk 0:00:04]}  Ra3 {[%clk 0:00:02]} 61. Kh5 {[%clk 0:00:05]}  Rxa4 {[%clk 0:00:02]} 62. Kxh6 {[%clk 0:00:05]}  Ra1 {[%clk 0:00:02]} 63. h4 {[%clk 0:00:05]}  a4 {[%clk 0:00:03]} 64. h5 {[%clk 0:00:05]}  a3 {[%clk 0:00:03]} 65. Rg3 {[%clk 0:00:06]}  Kc3 {[%clk 0:00:03]} 66. Rg2 {[%clk 0:00:05]}  Rh1 {[%clk 0:00:02]} 67. Ra2 {[%clk 0:00:03]}  Kb3 {[%clk 0:00:02]} 68. Rxa3+ {[%clk 0:00:03]}  Kxa3 {[%clk 0:00:02]} 69. Bxh1 {[%clk 0:00:04]}  Kb4 {[%clk 0:00:02]} 70. Be4 {[%clk 0:00:04]}  b5 {[%clk 0:00:02]} 71. cxb5 {[%clk 0:00:04]}  Kxb5 {[%clk 0:00:02]} 72. Bd5 {[%clk 0:00:04]}  Kb4 {[%clk 0:00:03]} 73. Bc4 {[%clk 0:00:05]}  Kc3 {[%clk 0:00:03]} 74. Kg6 {[%clk 0:00:05]}  Be3 {[%clk 0:00:03]} 75. h6 {[%clk 0:00:06]}  Bd4 {[%clk 0:00:03]} 76. h7 {[%clk 0:00:06]}  Kd2 {[%clk 0:00:03]} 77. Kf7 {[%clk 0:00:06]}  Ke3 {[%clk 0:00:03]} 78. Kg8 {[%clk 0:00:07]}  Kf4 {[%clk 0:00:03]} 79. h8=Q {[%clk 0:00:08]}  Bxh8 {[%clk 0:00:04]} 80. Kxh8 {[%clk 0:00:09]}  Ke5 {[%clk 0:00:04]} 81. Kg7 {[%clk 0:00:10]}  Kd4 {[%clk 0:00:04]} 82. Kg6 {[%clk 0:00:10]}  Ke5 {[%clk 0:00:04]} 83. Kg5 {[%clk 0:00:10]}  Kd6 {[%clk 0:00:04]} 84. Kf5 {[%clk 0:00:11]}  Kc6 {[%clk 0:00:04]} 85. Ke5 {[%clk 0:00:12]} 1-0


[Site "https://www.chess.com"]

[Event "Titled Tuesday Blitz April 11 Early 2023"]
[White "Mouhamad, Joachim"]
[Black "Gold_Ocean"]
[WhiteFideId "656410"]
[WhiteElo "2125"]
[BlackElo "2588"]
[Result "0-1"]
[Round "07"]
[TimeControl "180+2"]
[Date "2023.04.11"]
[WhiteClock "0:00:03"]
[BlackClock "0:00:05"]

1. e4 {[%clk 0:02:43]}  g6 {[%clk 0:02:58]} 2. d4 {[%clk 0:02:42]}  Bg7 {[%clk 0:02:58]} 3. Nc3 {[%clk 0:02:43]}  d6 {[%clk 0:02:58]} 4. Nf3 {[%clk 0:02:43]}  a6 {[%clk 0:02:58]} 5. Be2 {[%clk 0:02:40]}  b5 {[%clk 0:02:43]} 6. a4 {[%clk 0:02:37]}  b4 {[%clk 0:02:42]} 7. Na2 {[%clk 0:02:37]}  a5 {[%clk 0:02:41]} 8. c3 {[%clk 0:02:30]}  Nf6 {[%clk 0:02:18]} 9. Bd3 {[%clk 0:02:29]}  bxc3 {[%clk 0:02:10]} 10. Nxc3 {[%clk 0:02:27]}  Bb7 {[%clk 0:02:10]} 11. Qb3 {[%clk 0:02:16]}  Qc8 {[%clk 0:01:58]} 12. O-O {[%clk 0:02:08]}  O-O {[%clk 0:01:53]} 13. e5 {[%clk 0:02:04]}  dxe5 {[%clk 0:01:43]} 14. dxe5 {[%clk 0:02:03]}  Nfd7 {[%clk 0:01:43]} 15. e6 {[%clk 0:01:53]}  Nc5 {[%clk 0:01:37]} 16. exf7+ {[%clk 0:01:54]}  Kh8 {[%clk 0:01:38]} 17. Qc4 {[%clk 0:01:42]}  Nxd3 {[%clk 0:01:37]} 18. Qxd3 {[%clk 0:01:38]}  Ba6 {[%clk 0:01:37]} 19. Nb5 {[%clk 0:01:21]}  c6 {[%clk 0:01:37]} 20. Ng5 {[%clk 0:01:05]}  cxb5 {[%clk 0:01:29]} 21. axb5 {[%clk 0:01:06]}  Bb7 {[%clk 0:01:27]} 22. Ra4 {[%clk 0:01:01]}  Qf5 {[%clk 0:01:15]} 23. Qg3 {[%clk 0:00:38]}  Nd7 {[%clk 0:00:54]} 24. Rf4 {[%clk 0:00:34]}  Qd5 {[%clk 0:00:31]} 25. Rh4 {[%clk 0:00:31]}  Nf6 {[%clk 0:00:29]} 26. Qh3 {[%clk 0:00:20]}  Nh5 {[%clk 0:00:22]} 27. Be3 {[%clk 0:00:18]}  h6 {[%clk 0:00:16]} 28. Rxh5 {[%clk 0:00:10]}  gxh5 {[%clk 0:00:15]} 29. Ne6 {[%clk 0:00:08]}  Rxf7 {[%clk 0:00:12]} 30. Nc7 {[%clk 0:00:09]}  Qf5 {[%clk 0:00:08]} 31. Qxf5 {[%clk 0:00:05]}  Rxf5 {[%clk 0:00:08]} 32. Nxa8 {[%clk 0:00:06]}  Bxa8 {[%clk 0:00:08]} 33. Rc1 {[%clk 0:00:07]}  Bb7 {[%clk 0:00:07]} 34. b6 {[%clk 0:00:06]}  Be5 {[%clk 0:00:07]} 35. Rd1 {[%clk 0:00:05]}  Rf6 {[%clk 0:00:05]} 36. Rd7 {[%clk 0:00:04]}  Rd6 {[%clk 0:00:05]} 37. f4 {[%clk 0:00:03]}  Rxd7 {[%clk 0:00:05]} 38. fxe5 {[%clk 0:00:03]}  e6 {[%clk 0:00:05]} 39. Bc5 {[%clk 0:00:02]}  Rd2 {[%clk 0:00:04]} 40. Bd6 {[%clk 0:00:03]}  Rxg2+ {[%clk 0:00:04]} 41. Kf1 {[%clk 0:00:03]}  Rxb2 {[%clk 0:00:05]} 0-1


[Site "https://www.chess.com"]

[Event "Titled Tuesday Blitz April 11 Early 2023"]
[White "Cori T., Deysi"]
[Black "Leebit02"]
[WhiteFideId "3801934"]
[WhiteElo "2292"]
[BlackElo "2447"]
[Result "1-0"]
[Round "07"]
[TimeControl "180+2"]
[Date "2023.04.11"]
[WhiteClock "0:02:37"]
[BlackClock "0:01:24"]

1. d4 {[%clk 0:03:00]}  Nf6 {[%clk 0:02:56]} 2. Nf3 {[%clk 0:03:00]}  g6 {[%clk 0:02:54]} 3. g3 {[%clk 0:03:00]}  Bg7 {[%clk 0:02:55]} 4. Bg2 {[%clk 0:03:01]}  c5 {[%clk 0:02:54]} 5. O-O {[%clk 0:03:02]}  cxd4 {[%clk 0:02:52]} 6. Nxd4 {[%clk 0:03:02]}  O-O {[%clk 0:02:52]} 7. c4 {[%clk 0:03:02]}  d5 {[%clk 0:02:44]} 8. cxd5 {[%clk 0:03:01]}  Nxd5 {[%clk 0:02:44]} 9. Nb5 {[%clk 0:03:02]}  e6 {[%clk 0:02:37]} 10. N1c3 {[%clk 0:03:02]}  a6 {[%clk 0:02:12]} 11. Nxd5 {[%clk 0:03:01]}  axb5 {[%clk 0:02:08]} 12. Nb4 {[%clk 0:02:55]}  Qe7 {[%clk 0:02:02]} 13. Qb3 {[%clk 0:02:49]}  Nd7 {[%clk 0:01:57]} 14. Nd3 {[%clk 0:02:42]}  Nc5 {[%clk 0:01:25]} 15. Qb4 {[%clk 0:02:39]}  b6 {[%clk 0:01:24]} 16. Bxa8 {[%clk 0:02:37]} 1-0


[Site "https://www.chess.com"]

[Event "Titled Tuesday Blitz April 11 Early 2023"]
[White "Gonzalez, Francisco Silva"]
[Black "Royal, Shreyas"]
[WhiteFideId "1512285"]
[BlackFideId "448869"]
[WhiteElo "2074"]
[BlackElo "2331"]
[Result "1-0"]
[Round "07"]
[TimeControl "180+2"]
[Date "2023.04.11"]
[WhiteClock "0:00:33"]
[BlackClock "0:01:15"]

1. d4 {[%clk 0:03:00]}  Nf6 {[%clk 0:02:58]} 2. c4 {[%clk 0:03:01]}  e6 {[%clk 0:02:59]} 3. Nc3 {[%clk 0:02:59]}  Bb4 {[%clk 0:02:57]} 4. a3 {[%clk 0:03:00]}  Bxc3+ {[%clk 0:02:56]} 5. bxc3 {[%clk 0:03:01]}  c5 {[%clk 0:02:56]} 6. e3 {[%clk 0:03:01]}  Nc6 {[%clk 0:02:56]} 7. Bd3 {[%clk 0:03:02]}  O-O {[%clk 0:02:55]} 8. e4 {[%clk 0:03:02]}  Ne8 {[%clk 0:02:53]} 9. Nf3 {[%clk 0:03:02]}  d5 {[%clk 0:02:48]} 10. cxd5 {[%clk 0:03:01]}  exd5 {[%clk 0:02:48]} 11. e5 {[%clk 0:03:01]}  g6 {[%clk 0:02:42]} 12. h3 {[%clk 0:02:55]}  Ng7 {[%clk 0:02:41]} 13. Bg5 {[%clk 0:02:54]}  Qa5 {[%clk 0:02:38]} 14. Bd2 {[%clk 0:02:52]}  Bf5 {[%clk 0:02:34]} 15. Be2 {[%clk 0:02:49]}  Be4 {[%clk 0:02:32]} 16. O-O {[%clk 0:02:49]}  Qc7 {[%clk 0:02:30]} 17. Bg5 {[%clk 0:02:44]}  Ne6 {[%clk 0:02:26]} 18. Bf6 {[%clk 0:02:42]}  Bxf3 {[%clk 0:02:22]} 19. Bxf3 {[%clk 0:02:42]}  cxd4 {[%clk 0:02:22]} 20. cxd4 {[%clk 0:02:40]}  Ncxd4 {[%clk 0:02:13]} 21. Bxd5 {[%clk 0:02:39]}  Nf5 {[%clk 0:02:13]} 22. Bxe6 {[%clk 0:02:32]}  fxe6 {[%clk 0:02:14]} 23. Rc1 {[%clk 0:02:29]}  Qf7 {[%clk 0:02:08]} 24. Qc2 {[%clk 0:02:24]}  Ng7 {[%clk 0:02:02]} 25. g4 {[%clk 0:02:18]}  Ne8 {[%clk 0:02:00]} 26. g5 {[%clk 0:02:18]}  Nxf6 {[%clk 0:02:00]} 27. gxf6 {[%clk 0:02:15]}  g5 {[%clk 0:01:56]} 28. Rfd1 {[%clk 0:02:14]}  Qh5 {[%clk 0:01:50]} 29. Rd3 {[%clk 0:02:12]}  g4 {[%clk 0:01:46]} 30. Qc7 {[%clk 0:02:00]}  Rf7 {[%clk 0:01:45]} 31. Rd8+ {[%clk 0:01:58]}  Rxd8 {[%clk 0:01:45]} 32. Qxd8+ {[%clk 0:01:57]}  Rf8 {[%clk 0:01:46]} 33. Qe7 {[%clk 0:01:57]}  Qg6 {[%clk 0:01:43]} 34. Kh2 {[%clk 0:01:53]}  Qh6 {[%clk 0:01:38]} 35. Qxe6+ {[%clk 0:01:51]}  Kh8 {[%clk 0:01:38]} 36. Qxg4 {[%clk 0:01:50]}  Rg8 {[%clk 0:01:36]} 37. Qc4 {[%clk 0:01:46]}  Qd2 {[%clk 0:01:29]} 38. Rf1 {[%clk 0:00:35]}  Qb2 {[%clk 0:01:20]} 39. Qf4 {[%clk 0:00:33]}  Qxa3 {[%clk 0:01:19]} 40. f7 {[%clk 0:00:33]}  Rf8 {[%clk 0:01:15]} 1-0


[Site "https://www.chess.com"]

[Event "Titled Tuesday Blitz April 11 Early 2023"]
[White "Eynullayev, Atilla"]
[Black "Zacurdajev, Dmitry"]
[WhiteFideId "13413570"]
[BlackFideId "4196309"]
[WhiteElo "2181"]
[BlackElo "2189"]
[Result "1-0"]
[Round "07"]
[TimeControl "180+2"]
[Date "2023.04.11"]
[WhiteClock "0:00:14"]
[BlackClock "0:00:12"]

1. d4 {[%clk 0:03:00]}  d5 {[%clk 0:02:59]} 2. c4 {[%clk 0:03:01]}  e6 {[%clk 0:02:59]} 3. Nc3 {[%clk 0:03:02]}  Nf6 {[%clk 0:03:00]} 4. cxd5 {[%clk 0:03:01]}  exd5 {[%clk 0:03:00]} 5. Bg5 {[%clk 0:03:02]}  Be7 {[%clk 0:03:01]} 6. e3 {[%clk 0:03:02]}  c6 {[%clk 0:03:01]} 7. Bd3 {[%clk 0:03:02]}  Nbd7 {[%clk 0:03:02]} 8. Nf3 {[%clk 0:03:02]}  Nh5 {[%clk 0:02:57]} 9. Bxe7 {[%clk 0:03:02]}  Qxe7 {[%clk 0:02:58]} 10. O-O {[%clk 0:03:03]}  O-O {[%clk 0:02:56]} 11. Qb1 {[%clk 0:03:03]}  g6 {[%clk 0:02:50]} 12. b4 {[%clk 0:03:04]}  a6 {[%clk 0:02:50]} 13. a4 {[%clk 0:03:04]}  Ndf6 {[%clk 0:02:42]} 14. b5 {[%clk 0:03:04]}  axb5 {[%clk 0:02:43]} 15. axb5 {[%clk 0:03:04]}  Rxa1 {[%clk 0:02:44]} 16. Qxa1 {[%clk 0:03:05]}  c5 {[%clk 0:02:34]} 17. Qa3 {[%clk 0:02:47]}  b6 {[%clk 0:02:30]} 18. dxc5 {[%clk 0:01:59]}  Qxc5 {[%clk 0:01:59]} 19. Qa1 {[%clk 0:01:47]}  Ne4 {[%clk 0:01:36]} 20. Na4 {[%clk 0:01:14]}  Qd6 {[%clk 0:01:24]} 21. Qd4 {[%clk 0:01:06]}  Nc5 {[%clk 0:01:17]} 22. Nc3 {[%clk 0:01:05]}  Nxd3 {[%clk 0:01:13]} 23. Qxd3 {[%clk 0:01:06]}  Nf6 {[%clk 0:01:11]} 24. Rd1 {[%clk 0:01:06]}  Bf5 {[%clk 0:01:10]} 25. Qd4 {[%clk 0:01:04]}  Rd8 {[%clk 0:00:48]} 26. Ne5 {[%clk 0:00:34]}  Qc5 {[%clk 0:00:17]} 27. Nc6 {[%clk 0:00:34]}  Qxd4 {[%clk 0:00:12]} 28. Rxd4 {[%clk 0:00:35]}  Rd6 {[%clk 0:00:10]} 29. f3 {[%clk 0:00:27]}  Kf8 {[%clk 0:00:06]} 30. Kf2 {[%clk 0:00:20]}  Bd7 {[%clk 0:00:04]} 31. Nb4 {[%clk 0:00:20]}  Be6 {[%clk 0:00:03]} 32. e4 {[%clk 0:00:15]}  Rd8 {[%clk 0:00:02]} 33. exd5 {[%clk 0:00:15]}  Bf5 {[%clk 0:00:02]} 34. d6 {[%clk 0:00:15]}  Nd7 {[%clk 0:00:02]} 35. Nc6 {[%clk 0:00:15]}  Ra8 {[%clk 0:00:02]} 36. Nd5 {[%clk 0:00:14]}  Ra2+ {[%clk 0:00:02]} 37. Kg3 {[%clk 0:00:15]}  Be6 {[%clk 0:00:01]} 38. Nc7 {[%clk 0:00:11]}  Nc5 {[%clk 0:00:01]} 39. Nxe6+ {[%clk 0:00:11]}  Nxe6 {[%clk 0:00:01]} 40. d7 {[%clk 0:00:11]}  Ra8 {[%clk 0:00:01]} 41. d8=Q+ {[%clk 0:00:10]}  Nxd8 {[%clk 0:00:02]} 42. Rxd8+ {[%clk 0:00:10]}  Rxd8 {[%clk 0:00:02]} 43. Nxd8 {[%clk 0:00:11]}  Ke7 {[%clk 0:00:03]} 44. Nc6+ {[%clk 0:00:11]}  Kd6 {[%clk 0:00:04]} 45. Kf4 {[%clk 0:00:11]}  Kc5 {[%clk 0:00:05]} 46. Ne5 {[%clk 0:00:11]}  Kxb5 {[%clk 0:00:06]} 47. Nxf7 {[%clk 0:00:11]}  Kc4 {[%clk 0:00:06]} 48. Nd6+ {[%clk 0:00:11]}  Kd5 {[%clk 0:00:07]} 49. Nb5 {[%clk 0:00:11]}  Kc5 {[%clk 0:00:08]} 50. Nc3 {[%clk 0:00:12]}  Kc4 {[%clk 0:00:08]} 51. Ne4 {[%clk 0:00:09]}  Kd5 {[%clk 0:00:06]} 52. Kg5 {[%clk 0:00:08]}  b5 {[%clk 0:00:07]} 53. Nc3+ {[%clk 0:00:09]}  Kc4 {[%clk 0:00:08]} 54. Nxb5 {[%clk 0:00:10]}  Kxb5 {[%clk 0:00:08]} 55. Kh6 {[%clk 0:00:10]}  Kc5 {[%clk 0:00:09]} 56. Kxh7 {[%clk 0:00:11]}  Kd4 {[%clk 0:00:10]} 57. Kxg6 {[%clk 0:00:12]}  Ke3 {[%clk 0:00:11]} 58. h4 {[%clk 0:00:13]}  Kf2 {[%clk 0:00:12]} 59. h5 {[%clk 0:00:14]} 1-0


[Site "https://www.chess.com"]